bitfinex/quotes_ETHUSD_20251117
["timestamp","ask_amount","ask_price","bid_price","bid_amount"]
[1763387911160,0.2697,3127.4,3125.0,0.4511]
[1763387911161,0.405504,3127.3,3125.0,0.4511]
[1763387911656,1.17669264,3127.2,3124.8,0.182]
[1763387911865,1.72062663,3127.5,3124.8,0.182]
[1763387911866,0.2697,3127.1,3124.8,0.182]
[1763387912071,0.2697,3127.1,3125.0,0.405504]
[1763387912582,0.2697,3127.1,3124.9,0.405504]
[1763387912727,0.2697,3127.1,3125.2,0.405504]
[1763387912926,0.2697,3127.1,3125.1,0.4511]
[1763387912927,0.0813,3127.5,3125.4,0.405504]
[1763387913161,0.0813,3127.5,3125.2,0.405504]
[1763387913480,0.2697,3127.4,3125.2,0.405504]
[1763387913654,0.2697,3127.4,3125.3,0.4511]
[1763387913858,0.405504,3127.3,3125.3,0.4511]
[1763387914058,0.405504,3127.3,3124.8,0.182]
[1763387914232,0.2697,3127.4,3124.8,0.182]
[1763387914233,0.405504,3127.1,3124.8,0.6331]
[1763387914578,2.04483063,3127.1,3124.8,0.6331]
[1763387914742,0.2697,3127.2,3124.9,0.03200102]
[1763387914743,0.2697,3127.0,3124.9,0.03200102]
[1763387915056,0.2697,3127.0,3125.0,0.405504]
[1763387915259,0.2697,3127.0,3125.0,0.437504]
[1763387915438,0.2697,3127.0,3125.0,0.405504]
[1763387916376,0.2697,3127.0,3124.9,0.4511]
[1763387916377,0.405504,3126.9,3124.9,0.4511]
[1763387916538,0.405504,3126.9,3124.8,0.182]
[1763387916743,0.2697,3127.0,3124.8,0.182]
[1763387916744,0.405504,3126.7,3124.8,0.182]
[1763387917275,0.2697,3126.6,3124.4,0.4511]
[1763387917426,0.405504,3126.5,3124.4,0.4511]
[1763387917624,2.04483063,3126.5,3124.4,0.4511]
[1763387917859,0.2697,3126.4,3124.5,0.405504]
[1763387918066,0.2697,3126.4,3124.4,0.4511]
[1763387918262,0.405504,3126.3,3123.7,0.4511]
[1763387918859,0.405504,3126.1,3123.7,0.4511]
[1763387919062,1.51593055,3126.1,3123.7,0.4511]
[1763387919360,0.405504,3125.9,3123.7,0.4511]
[1763387919889,1.63932663,3126.3,3123.8,0.43751629]
[1763387919890,1.11042655,3126.3,3123.8,0.43751629]
[1763387920032,0.66639204,3126.3,3124.0,0.405504]
[1763387920231,0.2697,3126.4,3124.2,0.405504]
[1763387920631,0.2697,3126.4,3124.4,0.405504]
[1763387921061,0.2697,3126.4,3124.4,0.4511]
[1763387921375,1.38012655,3126.4,3124.5,0.405504]
[1763387921545,0.405504,3126.3,3124.4,0.4511]
[1763387921871,2.24858868,3126.3,3124.4,0.4511]
[1763387922177,0.93609204,3126.2,3124.4,0.4511]
[1763387922384,0.405504,3126.1,3123.8,0.4511]
[1763387922548,0.405504,3125.7,3123.8,0.4511]
[1763387922874,0.405504,3125.5,3123.8,0.4511]
[1763387923044,0.405504,3125.5,3123.6,0.001]
[1763387923234,0.2697,3125.4,3123.6,0.001]
[1763387923630,0.2697,3125.4,3123.7,0.4511]
[1763387924170,0.2697,3125.4,3123.6,0.001]
[1763387924664,0.66639204,3125.5,3123.8,0.405504]
[1763387924835,0.66639204,3125.6,3124.0,0.405504]
[1763387925033,0.66639204,3125.8,3124.2,0.405504]
[1763387925248,0.2697,3126.0,3123.9,0.4511]
[1763387925448,1.11042655,3126.1,3124.1,0.405504]
[1763387925655,1.77681859,3126.1,3124.1,0.405504]
[1763387925881,1.11042655,3126.1,3124.2,0.405504]
[1763387926457,2.42292319,3126.0,3124.1,0.4511]
[1763387926661,0.66639204,3125.9,3124.1,0.4511]
[1763387927471,0.2689,3125.8,3124.1,0.4511]
[1763387928059,0.2689,3125.8,3123.6,0.406504]
[1763387928373,1.11042655,3125.5,3123.6,0.4521]
[1763387928672,1.11042655,3125.5,3123.7,0.43751731]
[1763387928876,0.2689,3125.4,3123.6,0.4521]
[1763387929371,4.28699264,3125.3,3123.6,0.4521]
[1763387929575,0.2689,3125.4,3123.7,0.43751731]
[1763387929576,0.66639204,3125.2,3123.7,0.43751731]
[1763387929773,0.90699264,3125.2,3123.6,0.4521]
[1763387929964,1.57338468,3125.2,3123.6,0.4521]
[1763387930834,0.2689,3125.1,3123.6,0.4521]
[1763387931372,0.0938,3125.0,3123.6,0.4521]
[1763387931747,4.28699264,3125.6,3123.7,0.43751731]
[1763387931938,0.90699264,3125.4,3123.7,0.43751731]
[1763387932134,1.57402482,3125.4,3123.9,0.405504]
[1763387932336,0.66703218,3125.4,3123.9,0.405504]
[1763387932550,3.38,3125.5,3124.0,0.4511]
[1763387932873,0.2689,3125.6,3124.0,0.4511]
[1763387933072,3.6489,3125.6,3124.0,0.4511]
[1763387933375,0.90699264,3125.5,3124.0,0.4511]
[1763387933978,0.2689,3125.4,3123.7,0.405504]
[1763387934482,0.93609879,3125.4,3123.6,0.406504]
[1763387934668,0.93609879,3125.4,3123.8,0.405504]
[1763387934871,0.2689,3125.3,3123.8,0.405504]
[1763387935243,1.17589264,3125.3,3123.7,0.4511]
[1763387935538,0.66719879,3125.2,3123.7,0.4511]
[1763387935759,0.66719879,3125.2,3123.6,0.001]
[1763387935760,4.28699264,3124.9,3123.6,0.001]
[1763387935954,1.02989879,3124.8,3123.6,0.001]
[1763387936479,0.90699264,3124.6,3123.6,0.001]
[1763387936981,1.57438934,3124.6,3123.6,0.001]
[1763387937766,0.90699264,3124.6,3123.6,0.001]
[1763387937971,0.90699264,3124.6,3123.6,0.52121434]
[1763387938178,0.0938,3124.8,3123.6,0.001]
[1763387938373,0.3627,3124.8,3123.6,0.001]
[1763387939299,0.90699264,3124.6,3123.6,0.001]
[1763387939460,0.3627,3124.8,3123.6,0.03301434]
[1763387939661,0.3627,3124.8,3123.6,0.001]
[1763387939898,0.2689,3124.7,3123.6,0.001]
[1763387940660,0.90699264,3124.6,3123.6,0.001]
[1763387940861,1.57512592,3124.6,3123.6,0.001]
[1763387941364,1.84402592,3124.6,3123.6,0.001]
[1763387941571,0.66813328,3124.5,3123.6,0.001]
[1763387941877,0.93703328,3124.5,3123.6,0.001]
[1763387942475,0.0813,3123.7,3123.6,0.001]
[1763387942899,3.7302,3123.7,3123.6,0.001]
[1763387943109,5.71082992,3123.7,3123.6,0.001]
[1763387943404,5.71082992,3123.7,3123.3,0.001]
[1763387943405,4.69249664,3123.6,3123.3,0.001]
[1763387943564,4.69249664,3123.6,3120.1,7.84695106]
[1763387943565,4.69249664,3123.4,3121.4,0.4882]
[1763387943765,0.66813328,3123.5,3121.4,0.4882]
[1763387943766,4.69249664,3123.1,3121.4,0.4882]
[1763387944078,0.90699264,3123.1,3122.1,0.1994]
[1763387944273,1.57739664,3123.1,3121.3,0.4882]
[1763387944603,2.24492247,3123.1,3121.8,0.4882]
[1763387944767,2.24492247,3123.1,3120.8,0.001]
[1763387944969,0.495304,3122.8,3120.8,0.001]
[1763387945204,0.495304,3122.8,3121.2,0.6696]
[1763387945402,0.760204,3122.8,3121.2,0.6696]
[1763387945640,0.405504,3122.7,3121.2,0.1814]
[1763387945802,0.405504,3122.7,3120.8,0.001]
[1763387945803,0.405504,3122.5,3120.8,0.001]
[1763387945999,0.405504,3122.5,3120.9,0.4882]
[1763387946243,0.355504,3122.3,3120.9,0.4882]
[1763387946604,0.66752583,3122.5,3120.9,0.4882]
[1763387946825,1.17189264,3123.1,3121.0,0.405504]
[1763387946997,0.66577819,3123.0,3121.0,0.405504]
[1763387947199,0.66577819,3123.0,3121.1,0.6876]
[1763387947604,0.66577819,3123.0,3121.2,0.4882]
[1763387947915,0.2649,3122.7,3121.1,0.1994]
[1763387948442,0.2649,3122.5,3121.1,0.1994]
[1763387948821,1.17189264,3122.5,3120.8,0.001]
[1763387949007,0.66539005,3122.4,3121.1,0.1994]
[1763387949342,1.17189264,3122.5,3121.1,0.1994]
[1763387949541,0.0813,3123.7,3122.3,0.1994]
[1763387949752,0.83173756,3124.5,3122.5,0.405504]
[1763387950049,0.66556208,3124.6,3122.7,0.405504]
[1763387950205,0.2649,3124.7,3122.8,0.4882]
[1763387950405,0.90699264,3124.6,3122.8,0.4882]
[1763387950634,1.5727981,3124.6,3122.3,0.1994]
[1763387950837,0.90699264,3124.0,3122.3,0.1994]
[1763387951106,1.5727981,3124.0,3122.3,0.1994]
[1763387951337,0.3462,3123.9,3122.3,0.1994]
[1763387951538,0.405504,3123.8,3122.3,0.1994]
[1763387951759,0.670404,3123.8,3122.3,0.1994]
[1763387951964,0.405504,3123.6,3122.3,0.1994]
[1763387952306,0.74710546,3123.9,3122.4,0.4882]
[1763387952809,0.0313,3123.9,3122.4,0.4882]
[1763387953009,7.84595106,3124.5,3122.4,0.4882]
[1763387953242,1.57309268,3124.4,3122.4,0.4882]
[1763387953447,0.66610004,3124.4,3122.4,0.4882]
[1763387953616,0.2149,3124.3,3122.4,0.4882]
[1763387954241,1.57309268,3124.4,3122.4,0.4882]
[1763387954443,0.2149,3124.7,3122.5,0.43752962]
[1763387954644,1.57351291,3125.0,3122.5,0.405504]
[1763387954845,1.57351291,3125.0,3122.7,0.405504]
[1763387955138,1.499564,3125.0,3122.8,0.4882]
[1763387955341,2.40655664,3125.0,3122.8,0.4882]
[1763387955549,0.23158,3125.2,3122.9,0.43752039]
[1763387955709,0.05,3125.3,3123.0,0.4882]
[1763387956027,0.05,3125.3,3123.1,0.405504]
[1763387956227,0.2149,3125.2,3123.1,0.405504]
[1763387956440,0.2149,3125.2,3123.3,0.405504]
[1763387956943,0.405504,3125.1,3123.3,0.4882]
[1763387957102,1.97934318,3125.1,3123.3,0.4882]
[1763387957308,0.405504,3124.9,3123.3,0.4882]
[1763387957739,0.405504,3124.7,3122.7,0.499]
[1763387958105,1.28725054,3124.7,3122.7,0.499]
[1763387958306,0.2149,3124.6,3122.7,0.499]
[1763387958537,0.405504,3124.5,3122.7,0.499]
[1763387958942,0.2149,3124.5,3122.7,0.499]
[1763387961358,1.31249664,3124.3,3122.7,0.499]
[1763387961548,0.405504,3124.1,3122.7,0.499]
[1763387961913,0.405504,3124.1,3122.3,0.001]
[1763387962139,0.405504,3123.9,3122.3,0.5]
[1763387962630,0.405504,3123.7,3122.3,0.5]
[1763387964346,0.66684654,3123.9,3123.6,0.1931]
[1763387964551,0.2149,3125.0,3123.6,0.1931]
[1763387964552,0.6686173,3124.2,3123.6,0.1931]
[1763387964850,0.6686173,3124.2,3122.4,0.405504]
[1763387964851,0.405504,3124.5,3123.4,0.1931]
[1763387965216,0.90699264,3124.4,3123.4,0.1931]
[1763387965411,1.57560994,3124.4,3123.4,0.1931]
[1763387965611,0.6686173,3124.4,3123.5,0.499]
[1763387965816,1.11042655,3124.8,3123.5,0.499]
[1763387965817,0.6686173,3124.5,3123.5,0.499]
[1763387966012,0.83309111,3124.8,3123.5,0.499]
[1763387966240,0.83309111,3124.8,3122.3,0.001]
[1763387966241,3.5949,3124.7,3123.1,0.1931]
[1763387966441,3.38,3124.5,3123.1,0.1931]
[1763387966651,5.78870105,3124.4,3123.1,0.1931]
[1763387966815,5.78870105,3124.4,3123.1,0.6921]
[1763387966816,0.6686173,3124.3,3123.1,0.6921]
[1763387967520,0.6686173,3124.3,3123.2,0.474]
[1763387968163,0.83309111,3124.5,3123.2,0.474]
[1763387968164,0.83309111,3124.8,3124.2,0.1914]
[1763387968371,0.002,3125.2,3124.2,0.1914]
[1763387968552,0.002,3125.2,3124.3,0.474]
[1763387969145,0.002,3125.2,3123.1,0.1931]
[1763387969146,3.785504,3124.9,3123.8,0.1914]
[1763387969347,4.95588565,3124.8,3123.8,0.1914]
[1763387969547,0.66889301,3124.7,3123.8,0.1914]
[1763387970974,4.90739664,3124.6,3123.2,0.474]
[1763387971186,0.0751,3123.9,3123.2,0.1914]
[1763387971338,0.0743,3123.9,3123.2,0.1914]
[1763387972441,0.90699264,3124.4,3123.3,0.474]
[1763387972641,0.405504,3124.6,3123.3,0.474]
[1763387972870,0.405504,3124.7,3123.3,0.474]
[1763387973237,0.66841295,3124.8,3123.3,0.474]
[1763387973644,0.83509111,3125.2,3123.3,0.474]
[1763387974489,0.90699264,3125.0,3123.3,0.474]
[1763387974639,0.66841295,3125.0,3123.3,0.474]
[1763387974843,0.405504,3125.1,3123.3,0.474]
[1763387975044,1.98090959,3125.1,3123.3,0.474]
[1763387975342,1.31249664,3124.7,3123.3,0.474]
[1763387975683,7.43627532,3124.8,3123.3,0.474]
[1763387975684,1.31249664,3124.5,3123.3,0.474]
[1763387975978,0.90699264,3124.7,3123.3,0.474]
[1763387976279,0.405504,3124.6,3123.3,0.474]
[1763387976476,1.07399659,3124.6,3123.3,0.474]
[1763387977963,1.74008375,3125.1,3123.3,0.50601741]
[1763387978176,1.50243826,3125.0,3123.3,0.50601741]
[1763387978341,0.83309111,3125.0,3123.3,0.50601741]
[1763387978548,0.83309111,3125.0,3123.3,0.474]
[1763387978910,0.619604,3124.9,3123.3,0.474]
[1763387979177,0.83309111,3124.8,3123.3,0.50601741]
[1763387979381,0.66934715,3125.0,3123.3,0.50601741]
[1763387979382,0.002,3125.0,3123.6,0.405504]
[1763387979686,0.002,3125.4,3125.0,0.90699264]
[1763387979854,0.002,3127.4,3125.8,0.405504]
[1763387980041,0.002,3127.4,3125.8,1.31249664]
[1763387980450,0.002,3127.4,3125.8,2.00003912]
[1763387981452,0.002,3127.4,3126.3,1.26301878]
[1763387981684,0.1828,3127.2,3126.4,0.68754248]
[1763387981888,0.002,3127.4,3125.9,0.405504]
[1763387982203,0.002,3127.4,3126.1,0.405504]
[1763387982407,0.002,3127.4,3126.3,0.405504]
[1763387982599,0.002,3127.4,3126.5,0.405504]
[1763387982951,0.002,3127.4,3126.1,0.85751478]
[1763387983159,0.1828,3127.2,3126.2,0.68512181]
[1763387983482,0.1828,3127.2,3125.8,0.03199181]
[1763387983850,0.002,3127.4,3125.8,7.43627532]
[1763387984053,0.002,3127.4,3125.9,0.68422546]
[1763387984247,0.002,3127.4,3125.9,0.405504]
[1763387984558,0.1828,3126.9,3125.0,0.85751478]
[1763387984747,0.1828,3126.9,3124.2,2.27556223]
[1763387984748,0.405504,3126.8,3124.2,0.85751478]
[1763387984953,0.405504,3126.8,3124.1,7.43627532]
[1763387984954,0.891904,3126.8,3124.3,1.54147664]
[1763387985153,0.891904,3126.8,3124.0,7.43627532]
[1763387985351,0.4864,3126.7,3124.5,7.43627532]
[1763387985555,0.4864,3126.7,3124.6,0.7037952]
[1763387985755,0.4864,3126.7,3124.6,0.405504]
[1763387985956,0.4864,3126.7,3124.5,7.43627532]
[1763387986273,0.405504,3126.6,3124.1,0.82937901]
[1763387986463,0.4864,3126.7,3124.2,0.85241032]
[1763387986664,0.405504,3126.5,3124.3,0.68372094]
[1763387987178,0.4864,3126.4,3124.3,0.68372094]
[1763387987786,0.4864,3126.4,3124.4,0.405504]
[1763387988156,0.4864,3126.4,3124.3,0.405504]
[1763387989259,0.4864,3126.4,3124.4,0.03200614]
[1763387989869,0.4864,3126.4,3124.2,0.405504]
[1763387990070,0.4864,3126.4,3124.1,0.82937901]
[1763387990071,0.4864,3126.4,3124.4,0.405504]
[1763387990913,0.4864,3126.4,3124.2,0.405504]
[1763387991068,0.6692,3126.9,3124.5,0.405504]
[1763387991392,0.4864,3126.8,3124.6,1.55360262]
[1763387991604,0.4864,3126.8,3124.8,0.405504]
[1763387991753,0.4864,3126.8,3125.0,0.405504]
[1763387991956,0.4864,3126.8,3124.7,0.405504]
[1763387992179,0.4864,3126.8,3124.9,0.405504]
[1763387992397,0.4864,3126.8,3125.1,0.405504]
[1763387992911,0.4864,3126.8,3124.8,0.405504]
[1763387993094,0.4864,3126.8,3124.9,0.71571992]
[1763387993310,0.002,3127.0,3125.4,7.43627532]
[1763387993617,0.002,3127.0,3126.5,0.85751478]
[1763387993770,0.1828,3126.9,3126.0,0.85751478]
[1763387994097,0.1828,3126.9,3125.5,0.85751478]
[1763387994258,0.002,3127.0,3125.7,0.03199283]
[1763387994458,0.0012,3127.0,3125.8,8.97772995]
[1763387994687,0.0012,3127.0,3126.2,1.26301878]
[1763387994911,0.0012,3127.0,3126.6,1.26301878]
[1763387995085,0.0012,3127.0,3126.8,0.405504]
[1763387995287,0.0012,3127.0,3126.9,1.08944385]
[1763387995487,0.0012,3127.0,3126.9,1.1214244]
[1763387996202,0.0012,3127.0,3126.9,1.08944385]
[1763387996683,0.1828,3129.7,3126.9,1.31612026]
[1763387996888,0.6692,3130.0,3128.1,1.25890155]
[1763387997218,0.6692,3130.0,3128.2,0.68393985]
[1763387997219,0.4864,3129.9,3128.2,0.68393985]
[1763387997369,0.4864,3129.9,3127.9,1.25890155]
[1763387997560,0.4864,3129.9,3128.1,0.405504]
[1763387997756,0.4864,3129.9,3128.3,0.405504]
[1763387998000,0.4864,3129.9,3128.5,0.405504]
[1763387998200,0.4864,3129.9,3128.6,0.68173264]
[1763387998399,0.4864,3129.9,3128.2,0.405504]
[1763387998610,0.4864,3129.9,3128.3,0.68090935]
[1763387998763,0.4864,3129.9,3128.2,1.25890155]
[1763387998764,0.4864,3129.9,3128.4,0.71287457]
[1763387998963,0.4864,3129.9,3128.6,0.405504]
[1763387999159,0.4864,3129.9,3128.1,0.85339755]
[1763387999363,0.4864,3129.9,3128.3,0.405504]
[1763387999602,0.4864,3129.9,3128.5,0.405504]
[1763387999777,0.4864,3129.9,3128.1,0.85339755]
[1763387999978,0.4864,3129.9,3128.3,0.405504]
[1763388000199,0.4864,3129.9,3127.9,1.25890155]
[1763388000365,0.4864,3129.9,3128.1,0.405504]
[1763388000567,0.4864,3129.9,3128.2,0.68033069]
[1763388000762,0.405504,3129.8,3127.7,0.85339755]
[1763388001064,0.405504,3129.8,3124.5,1.56020134]
[1763388001065,0.405504,3129.5,3127.2,0.85339755]
[1763388001304,0.405504,3129.1,3127.3,0.68041859]
[1763388001504,0.405504,3128.9,3126.7,0.85339755]
[1763388001667,1.31249664,3128.6,3126.2,0.85339755]
[1763388001867,1.31249664,3128.6,3126.0,1.1378634]
[1763388001868,1.31249664,3128.6,3126.3,0.68066732]
[1763388002122,0.405504,3128.4,3126.4,0.68066732]
[1763388002277,0.405504,3128.4,3126.0,0.85339755]
[1763388002608,0.405504,3128.2,3126.1,1.5345091]
[1763388002773,0.405504,3128.2,3125.3,2.27556223]
[1763388002774,0.90699264,3127.1,3125.1,0.85339755]
[1763388002980,0.1971,3126.0,3124.6,0.27846271]
[1763388003190,0.880904,3125.9,3124.1,0.85339755]
[1763388003363,0.405504,3125.5,3123.6,0.85339755]
[1763388003714,1.31249664,3125.1,3123.6,0.1991261]
[1763388003868,1.31249664,3125.1,3123.3,0.001]
[1763388004068,0.42978069,3125.8,3123.3,0.001]
[1763388004069,0.405504,3124.9,3123.3,0.001]
[1763388004292,0.4754,3124.8,3123.3,0.001]
[1763388004492,0.405504,3124.7,3123.3,0.001]
[1763388004701,0.17878966,3124.7,3123.3,0.001]
[1763388004902,0.405504,3124.5,3123.3,0.001]
[1763388005109,0.1971,3123.4,3123.3,0.001]
[1763388005326,0.602604,3123.4,3123.3,0.001]
[1763388005533,0.602604,3123.4,3122.9,0.001]
[1763388005534,0.6725,3123.4,3122.9,0.001]
[1763388005703,0.1971,3123.8,3122.9,0.001]
[1763388006422,0.6725,3123.8,3122.9,0.001]
[1763388006622,0.4754,3124.3,3122.9,0.001]
[1763388007205,0.1971,3123.0,3122.9,0.001]
[1763388007529,0.1971,3123.0,3122.6,0.001]
[1763388007701,0.4754,3122.9,3122.6,0.001]
[1763388008229,0.405504,3122.0,3120.8,0.001]
[1763388008390,0.1971,3121.0,3120.8,0.001]
[1763388008591,0.4754,3121.9,3120.8,0.001]
[1763388008792,0.405504,3121.8,3120.8,0.001]
[1763388009210,0.4754,3121.7,3120.8,0.001]
[1763388010392,0.405504,3121.6,3120.8,0.001]
[1763388010594,0.1971,3120.9,3120.8,0.001]
[1763388010919,0.1971,3121.0,3120.8,0.001]
[1763388011430,0.405504,3120.8,3118.2,0.85339755]
[1763388011638,1.31249664,3120.8,3117.8,0.02299265]
[1763388011938,0.405504,3120.6,3117.9,0.04267286]
[1763388012229,0.405504,3120.6,3118.0,0.71012623]
[1763388012430,0.4754,3120.7,3118.0,0.0106]
[1763388012629,0.1971,3121.0,3118.4,1.76039019]
[1763388012793,0.1971,3121.2,3118.6,0.90699264]
[1763388012998,0.1971,3121.2,3118.8,0.405504]
[1763388013219,0.4754,3121.1,3118.8,0.405504]
[1763388013417,0.1971,3121.2,3119.0,0.405504]
[1763388013616,0.4754,3121.1,3119.2,0.405504]
[1763388013829,0.4754,3121.1,3119.3,0.03205847]
[1763388014028,0.4754,3121.1,3119.0,0.0106]
[1763388014235,0.405504,3121.0,3119.0,0.0106]
[1763388014549,0.405504,3121.0,3118.2,0.03206978]
[1763388014694,0.4754,3120.9,3118.4,0.0106]
[1763388014894,0.4754,3120.9,3118.6,0.01389005]
[1763388015394,0.4754,3120.9,3118.8,0.405504]
[1763388015599,0.4754,3120.9,3119.0,0.405504]
[1763388015828,0.4754,3120.9,3118.6,0.01389005]
[1763388015829,0.4754,3120.9,3119.2,0.405504]
[1763388015997,0.1971,3121.2,3119.3,0.03205847]
[1763388016195,0.1971,3121.2,3119.4,0.405504]
[1763388016398,0.4754,3121.8,3119.4,0.0106]
[1763388016631,0.4754,3121.8,3119.5,0.0106]
[1763388016835,0.4754,3121.8,3119.7,0.405504]
[1763388017243,0.1971,3122.1,3119.8,0.0106]
[1763388017394,0.4754,3121.7,3119.8,0.0106]
[1763388017595,0.4746,3121.7,3119.8,0.0106]
[1763388018297,0.1971,3122.1,3119.8,0.0106]
[1763388018499,0.1971,3122.1,3119.9,0.01154647]
[1763388019126,0.1971,3122.1,3120.0,0.01168821]
[1763388019330,0.1971,3122.1,3119.3,0.01194434]
[1763388019331,0.405504,3122.0,3119.3,0.01194434]
[1763388019530,0.893204,3122.0,3119.5,0.0118582]
[1763388019719,0.893204,3122.0,3119.5,0.04391461]
[1763388020042,0.405504,3121.8,3119.2,0.01171706]
[1763388020367,0.4877,3121.9,3119.4,0.01156388]
[1763388020563,0.1971,3122.1,3119.2,0.01171706]
[1763388020564,0.4877,3121.8,3119.2,0.01171706]
[1763388020750,0.4877,3121.8,3119.4,0.01156388]
[1763388020937,0.4877,3121.8,3119.6,0.41685281]
[1763388021338,0.4877,3121.8,3119.8,0.01106561]
[1763388021556,0.4877,3121.8,3120.0,0.41719221]
[1763388021738,0.1971,3122.1,3120.0,0.41719221]
[1763388021936,0.1971,3122.1,3120.2,0.01192073]
[1763388022348,0.4877,3122.0,3120.2,0.01192073]
[1763388022672,0.4877,3122.0,3120.3,0.02318742]
[1763388023035,0.4877,3122.7,3120.5,0.41717301]
[1763388023264,0.4877,3122.7,3120.7,0.01123333]
[1763388023672,0.4877,3122.7,3120.7,0.02263333]
[1763388023897,0.4877,3122.7,3120.9,0.41709481]
[1763388024049,0.1971,3123.0,3120.9,0.41709481]
[1763388024255,0.4877,3123.5,3121.1,0.405504]
[1763388024485,0.4877,3123.5,3121.3,0.405504]
[1763388024789,0.1877,3123.7,3121.9,0.90699264]
[1763388024945,0.1877,3123.7,3122.0,1.24003358]
[1763388025285,0.4897,3123.4,3122.0,0.83452958]
[1763388025488,0.4897,3123.4,3121.1,7.43830315]
[1763388025489,0.4897,3123.4,3120.8,0.0114]
[1763388025698,0.4897,3123.4,3121.2,1.31249664]
[1763388026045,0.4897,3123.4,3121.3,0.0114]
[1763388028213,0.4897,3123.4,3121.5,0.405504]
[1763388028394,0.4897,3123.4,3121.3,0.405504]
[1763388028571,1.31249664,3123.0,3120.8,0.85339755]
[1763388028896,1.31249664,3123.0,3120.3,0.85339755]
[1763388029204,1.31249664,3123.0,3120.2,0.01192073]
[1763388029205,0.405504,3122.8,3120.6,0.86491745]
[1763388029369,1.31249664,3122.6,3120.7,1.56351785]
[1763388029571,4.69249664,3122.4,3120.8,0.67807621]
[1763388029775,4.69249664,3122.4,3120.0,0.85339755]
[1763388030008,0.90699264,3121.9,3120.1,0.01115113]
[1763388030211,4.28699264,3121.9,3119.8,0.01206561]
[1763388030432,7.43830315,3121.5,3120.0,0.01268821]
[1763388030717,0.4717,3121.8,3120.0,0.01368821]
[1763388031010,0.4717,3121.7,3119.9,0.01354647]
[1763388031306,0.4717,3121.7,3120.1,0.405504]
[1763388031492,0.4717,3121.7,3120.3,0.405504]
[1763388031698,1.08819264,3122.3,3120.3,0.405504]
[1763388031699,0.4717,3122.2,3120.5,1.25890155]
[1763388031884,0.4717,3122.2,3120.7,0.405504]
[1763388032089,0.1812,3122.3,3121.1,0.85339755]
[1763388032394,0.1812,3122.3,3120.8,0.71549842]
[1763388032395,0.4717,3122.7,3121.4,0.85339755]
[1763388032711,0.4717,3122.7,3121.5,0.68345536]
[1763388032878,0.4717,3122.7,3121.6,0.68345536]
[1763388033207,0.4717,3122.7,3121.7,0.68345536]
[1763388033409,0.4717,3122.7,3121.6,0.85339755]
[1763388033410,0.4717,3122.7,3121.8,1.53685291]
[1763388033617,0.4717,3122.7,3121.4,1.97426674]
[1763388033618,0.4717,3122.7,3121.9,1.53685291]
[1763388033915,0.002,3122.2,3122.0,0.68345536]
[1763388034084,0.002,3122.2,3122.1,0.68345536]
[1763388035986,0.4737,3122.2,3122.1,0.68345536]
[1763388036201,0.002,3122.2,3121.5,1.1378634]
[1763388036417,0.002,3122.2,3122.1,1.70679511]
[1763388036577,0.002,3122.2,3122.1,2.00018299]
[1763388036773,0.002,3122.6,3122.1,2.00018299]
[1763388036774,0.002,3122.6,3122.2,1.31249664]
[1763388037013,0.002,3122.6,3122.3,0.68768635]
[1763388037315,0.002,3122.6,3122.4,0.68768635]
[1763388037516,0.002,3122.6,3122.5,1.8335518]
[1763388037694,0.002,3122.6,3122.5,0.68768635]
[1763388038029,0.002,3122.6,3122.5,1.54710107]
[1763388038193,0.002,3122.6,3122.5,1.54688767]
[1763388040030,0.002,3122.6,3122.5,0.68768635]
[1763388040204,0.4737,3122.6,3122.5,0.68768635]
[1763388040409,0.4737,3122.6,3122.1,0.85888344]
[1763388040609,0.4729,3122.6,3121.8,0.85888344]
[1763388041017,0.4729,3122.6,3121.5,0.85888344]
[1763388041223,0.4729,3122.6,3121.6,0.85888344]
[1763388042246,0.4729,3122.6,3121.7,0.85888344]
[1763388042435,0.4729,3122.6,3121.8,0.85888344]
[1763388042635,0.4729,3122.6,3120.8,7.85360755]
[1763388042636,0.4729,3122.6,3121.5,0.85888344]
[1763388042834,0.4729,3122.6,3120.7,2.27556223]
[1763388042835,0.1812,3121.7,3120.9,0.85888344]
[1763388043044,0.1812,3121.7,3120.8,0.85888344]
[1763388043238,0.4717,3121.6,3120.8,0.85888344]
[1763388043821,0.4717,3121.6,3120.8,1.05935833]
[1763388044023,0.4717,3121.6,3120.8,0.85888344]
[1763388044857,0.4717,3121.6,3120.6,0.85888344]
[1763388046418,0.4717,3121.6,3120.7,0.85888344]
[1763388046672,0.4717,3121.6,3120.6,0.85888344]
[1763388046894,0.405504,3121.5,3120.5,0.85888344]
[1763388047069,0.4257204,3121.4,3120.1,0.85888344]
[1763388047380,0.4257204,3121.4,3120.3,0.85888344]
[1763388047381,0.4717,3121.4,3120.3,0.85888344]
[1763388047540,0.4717,3121.4,3120.2,0.85888344]
[1763388047750,0.4717,3121.4,3120.0,1.14586545]
[1763388047751,1.31249664,3121.3,3120.0,0.85888344]
[1763388047977,0.4717,3121.4,3119.7,0.85888344]
[1763388048295,0.4717,3121.4,3119.6,0.85888344]
[1763388048296,3.785504,3121.2,3119.6,0.85888344]
[1763388048581,1.37869264,3121.3,3119.4,1.14686545]
[1763388048582,0.1812,3119.5,3119.4,0.001]
[1763388048941,0.6529,3119.5,3119.4,0.001]
[1763388049185,0.4717,3119.9,3119.4,0.001]
[1763388049479,0.90699264,3120.6,3119.4,0.001]
[1763388049480,0.4717,3120.6,3119.4,0.001]
[1763388049679,0.4717,3120.5,3119.4,0.001]
[1763388053083,0.1812,3119.5,3119.4,0.001]
[1763388053282,0.1812,3119.5,3118.7,0.001]
[1763388053283,0.405504,3119.4,3118.7,0.001]
[1763388053490,0.405504,3119.4,3118.1,0.001]
[1763388053491,1.31249664,3118.7,3118.1,0.001]